bitfinex/quotes_ETHUSD_20240711
["timestamp","ask_amount","ask_price","bid_price","bid_amount"]
[1720735630021,3.0,3113.1,3112.3,3.21305]
[1720735630254,2.2922,3113.7,3112.6,3.21273]
[1720735630381,3.21194,3113.4,3112.2,3.21309]
[1720735630584,1.11272477,3113.3,3112.2,3.21309]
[1720735630777,3.21194,3113.4,3112.2,3.21309]
[1720735630978,3.2122,3113.2,3112.0,12.97434]
[1720735631222,2.2922,3113.0,3112.0,10.69334]
[1720735631481,1.11276149,3112.9,3112.0,3.21334]
[1720735631799,3.21271,3112.7,3111.5,3.21460411]
[1720735631978,4.75545803,3112.6,3111.5,3.21460411]
[1720735632323,1.11292403,3112.5,3111.5,3.21460411]
[1720735632696,1.11292403,3112.5,3111.6,3.21376]
[1720735633510,1.11292403,3112.5,3111.7,3.21364]
[1720735633730,1.11292403,3112.5,3111.6,3.21376]
[1720735634035,1.90974083,3112.5,3111.6,3.21376]
[1720735634206,1.90974083,3112.5,3111.5,0.00081411]
[1720735634207,3.40512403,3112.4,3111.5,0.00081411]
[1720735634407,4.11292403,3112.3,3111.5,0.00081411]
[1720735634718,3.0,3112.3,3111.5,0.00081411]
[1720735635032,1.64231923,3112.2,3111.5,0.00081411]
[1720735635193,1.11316976,3112.1,3111.5,0.00081411]
[1720735635520,1.11316976,3112.0,3111.5,0.00081411]
[1720735635720,1.11323435,3111.9,3111.5,0.00081411]
[1720735635941,3.0,3112.1,3111.5,0.00081411]
[1720735636084,0.352922,3112.0,3111.5,0.00081411]
[1720735636395,3.52922,3112.2,3111.5,0.00081411]
[1720735636598,1.11312526,3112.1,3111.5,0.00081411]
[1720735636923,4.32662217,3112.0,3111.5,0.00081411]
[1720735637129,1.11319217,3111.9,3111.5,0.00081411]
[1720735637280,3.0,3111.9,3111.5,0.00081411]
[1720735637478,0.3,3111.9,3111.5,0.00081411]
[1720735638263,1.11323297,3111.8,3111.5,0.00081411]
[1720735638400,0.3,3111.9,3111.5,0.00081411]
[1720735638584,3.3,3111.9,3111.5,0.00081411]
[1720735638785,0.3,3111.9,3111.5,0.00081411]
[1720735638995,0.52922,3112.2,3111.5,0.00081411]
[1720735639248,3.2135,3111.9,3111.5,0.00081411]
[1720735639560,7.32675459,3111.8,3111.5,0.00081411]
[1720735639713,1.11317459,3111.7,3111.5,0.00081411]
[1720735639901,3.0,3111.8,3111.5,0.00081411]
[1720735640100,0.3,3111.8,3111.5,0.00081411]
[1720735640424,3.0,3112.1,3111.5,0.00081411]
[1720735640425,6.21327,3112.1,3111.5,0.00081411]
[1720735640585,3.0,3112.1,3111.5,0.00081411]
[1720735641227,1.11315585,3112.0,3111.5,0.00081411]
[1720735642627,3.0,3112.1,3111.5,0.00081411]
[1720735642789,1.11313856,3111.9,3111.5,0.00081411]
[1720735643322,1.11313856,3111.9,3111.6,3.21369]
[1720735643545,10.70261,3112.8,3111.6,3.21369]
[1720735643546,13.91524,3112.8,3111.6,3.21369]
[1720735643830,4.32570697,3112.7,3111.6,3.21369]
[1720735644029,10.70261,3112.8,3111.5,3.53610152]
[1720735644030,4.32583697,3112.6,3111.5,0.00081411]
[1720735644229,3.21306,3112.3,3111.5,0.00081411]
[1720735644629,1.11313601,3112.2,3111.5,0.00081411]
[1720735644935,1.11313601,3112.1,3111.5,0.00081411]
[1720735645451,1.11313601,3112.2,3111.5,0.00081411]
[1720735645625,6.21299,3112.4,3111.5,0.00081411]
[1720735645626,3.59503601,3112.1,3111.5,0.00081411]
[1720735645792,4.11313601,3112.0,3111.5,0.00081411]
[1720735645998,1.11313601,3111.9,3111.5,0.00081411]
[1720735647014,1.11313601,3112.2,3111.5,0.00081411]
[1720735647223,1.11313601,3112.1,3111.5,0.00081411]
[1720735647422,1.11313601,3112.0,3111.6,3.2137]
[1720735647628,1.11313601,3111.9,3111.6,3.2137]
[1720735647848,3.0,3112.4,3111.6,3.2137]
[1720735648013,2.4819,3112.5,3111.5,0.00081411]
[1720735648353,1.11309105,3112.4,3111.5,0.00081411]
[1720735648556,1.772613,3112.3,3111.5,3.21466411]
[1720735648766,1.11311389,3112.2,3111.5,6.42846411]
[1720735649061,1.11311389,3112.1,3111.6,3.21377]
[1720735649214,1.11311389,3112.0,3111.6,3.21377]
[1720735649409,3.0,3112.5,3111.5,0.00081411]
[1720735649410,3.21297,3112.4,3111.5,0.00081411]
[1720735649638,4.11302955,3112.3,3111.5,0.00081411]
[1720735649845,1.84562951,3112.2,3111.5,0.00081411]
[1720735650038,3.21344,3112.0,3111.5,0.00081411]
[1720735650344,1.11302955,3111.9,3111.5,0.00081411]
[1720735650654,3.21378,3111.6,3111.5,0.00081411]
[1720735650851,4.32680955,3111.6,3111.5,0.00081411]
[1720735651177,7.81478957,3111.6,3111.5,0.00081411]
[1720735651533,6.70146095,3111.6,3111.5,0.00081411]
[1720735651739,7.81483833,3111.6,3111.5,0.00081411]
[1720735652171,4.60105833,3111.6,3111.5,0.00081411]
[1720735652371,1.60105833,3111.6,3111.5,0.00081411]
[1720735652582,4.60105833,3111.6,3111.5,0.00081411]
[1720735652743,7.81483833,3111.6,3111.5,0.00081411]
[1720735653864,4.60105833,3111.6,3111.5,0.00081411]
[1720735654065,1.11337738,3111.6,3111.5,0.00081411]
[1720735654267,3.21255,3112.8,3111.5,4.71951411]
[1720735654470,1.11303044,3112.5,3111.9,2.281]
[1720735654643,1.11303044,3112.4,3111.9,2.281]
[1720735654849,3.2123,3113.1,3111.9,2.281]
[1720735655185,1.43406667,3113.0,3112.0,0.2281]
[1720735655348,1.11283667,3112.9,3112.0,0.2281]
[1720735656474,1.11283667,3112.9,3111.9,2.281]
[1720735656676,4.32528667,3112.9,3111.6,3.21377]
[1720735656879,7.32545667,3112.8,3111.5,2.43851411]
[1720735657081,6.21274,3112.7,3111.5,2.43851411]
[1720735657386,6.21274,3112.7,3111.5,0.00081411]
[1720735657387,2.3025,3112.5,3111.5,0.00081411]
[1720735657582,1.11283667,3112.4,3111.5,0.00081411]
[1720735657785,4.11283667,3112.4,3111.5,0.00081411]
[1720735658095,1.11283667,3112.3,3111.5,0.00081411]
[1720735658300,4.05381967,3112.6,3111.5,0.00081411]
[1720735658591,1.83965821,3112.5,3111.5,0.00081411]
[1720735658885,1.11301463,3112.4,3111.5,0.00081411]
[1720735659084,4.11301463,3112.4,3111.5,0.00081411]
[1720735659251,1.11301463,3112.3,3111.5,0.00081411]
[1720735659700,1.11301463,3112.4,3111.5,0.00081411]
[1720735659990,5.68136579,3112.3,3111.5,0.00081411]
[1720735660291,4.11301463,3112.2,3111.5,0.00081411]
[1720735660457,1.11301463,3112.1,3111.5,0.00081411]
[1720735661394,7.56831116,3112.3,3111.5,0.00081411]
[1720735661694,1.1131179,3112.2,3111.5,0.00081411]
[1720735661991,1.1131179,3112.2,3111.5,3.21468411]
[1720735662158,1.1131179,3112.2,3111.5,3.85755752]
[1720735662353,1.1131179,3112.5,3111.5,3.85755752]
[1720735662593,1.1131179,3112.4,3111.5,0.00081411]
[1720735663087,1.1131179,3112.3,3111.5,0.00081411]
[1720735663248,3.0,3112.4,3111.5,0.00081411]
[1720735663249,1.1131179,3112.2,3111.5,0.00081411]
[1720735663450,1.1131179,3112.1,3111.5,0.00081411]
[1720735663684,1.1131179,3112.0,3111.5,0.00081411]
[1720735663898,6.21295,3112.4,3111.5,2.46241411]
[1720735663899,1.1131179,3112.3,3111.5,2.46241411]
[1720735664059,1.1131179,3111.9,3111.5,5.67624411]
[1720735664395,1.1131179,3111.8,3111.5,5.67624411]
[1720735664558,1.1131179,3111.7,3111.5,5.67624411]
[1720735664753,6.21275,3112.6,3111.5,5.67624411]
[1720735664958,1.11308231,3112.5,3111.5,5.67624411]
[1720735665177,1.84566554,3112.4,3111.5,5.67624411]
[1720735665373,1.11308231,3112.3,3111.5,2.46241411]
[1720735665581,1.11308231,3112.2,3111.5,2.46241411]
[1720735665858,1.11308231,3112.1,3111.5,2.46241411]
[1720735666058,1.11308231,3112.0,3111.5,2.46241411]
[1720735666293,1.11308231,3111.9,3111.5,2.46241411]
[1720735666497,1.11308231,3111.8,3111.5,2.46241411]
[1720735666812,1.11308231,3111.7,3111.5,2.46241411]
[1720735667105,1.11308231,3112.2,3111.5,0.00081411]
[1720735667260,3.69454932,3112.3,3111.5,0.00081411]
[1720735667261,1.11308231,3112.1,3111.5,0.00081411]
[1720735667462,1.55579557,3112.2,3111.5,0.00081411]
[1720735667713,1.11308231,3112.1,3111.5,0.00081411]
[1720735668260,0.44271326,3112.2,3111.5,0.00081411]
[1720735668467,1.11309461,3112.1,3111.5,0.00081411]
[1720735668680,0.45558079,3112.0,3111.5,0.00081411]
[1720735668878,1.11309461,3111.9,3111.5,0.00081411]
[1720735669807,1.11309461,3111.8,3111.5,0.00081411]
[1720735670010,1.11309461,3112.1,3111.5,0.00081411]
[1720735670201,1.11309461,3112.0,3111.5,0.00081411]
[1720735670510,1.11309461,3111.9,3111.5,0.00081411]
[1720735670714,0.44271326,3112.2,3111.5,0.00081411]
[1720735670715,1.11309461,3112.1,3111.5,0.00081411]
[1720735670884,0.44271326,3112.2,3111.5,0.00081411]
[1720735671086,1.45739575,3112.1,3111.5,0.00081411]
[1720735671289,1.11312482,3112.0,3111.5,0.00081411]
[1720735671503,0.34427133,3112.1,3111.5,0.00081411]
[1720735671718,1.11310021,3111.9,3111.5,0.00081411]
[1720735671885,1.11310021,3111.8,3111.5,0.00081411]
[1720735672089,1.11310021,3111.7,3111.5,0.00081411]
[1720735672299,1.11310021,3111.6,3111.5,0.00081411]
[1720735673176,3.0,3112.3,3111.5,3.53617552]
[1720735673405,1.11297713,3112.2,3111.5,3.53617552]
[1720735673610,3.21275,3112.6,3111.5,3.53617552]
[1720735673611,1.11297713,3112.1,3111.5,3.53617552]
[1720735673880,1.11297713,3112.0,3111.5,0.32229552]
[1720735674113,4.11297713,3112.4,3111.5,0.32229552]
[1720735674274,1.84555984,3112.3,3111.5,0.00081411]
[1720735674472,1.11297713,3112.2,3111.5,0.00081411]
[1720735674678,1.11297713,3112.2,3111.7,3.21359]
[1720735674921,1.11297713,3112.2,3111.5,0.00081411]
[1720735675096,1.11304806,3112.1,3111.5,0.00081411]
[1720735675292,1.11304806,3112.0,3111.5,0.00081411]
[1720735675521,1.11304806,3112.4,3111.5,0.00081411]
[1720735675690,1.84563387,3112.4,3111.5,3.21467411]
[1720735675885,1.11304806,3112.3,3111.5,3.21467411]
[1720735676129,1.11304806,3112.3,3111.6,2.2604]
[1720735676331,3.21259,3112.8,3111.6,2.2604]
[1720735676332,1.11304806,3112.4,3111.6,2.2604]
[1720735676616,1.11304806,3112.3,3111.6,2.2604]
[1720735676820,1.11304806,3112.2,3111.6,6.57115641]
[1720735676982,1.11304806,3112.1,3111.6,6.57115641]
[1720735677324,1.11304806,3112.0,3111.6,6.57115641]
[1720735677726,1.11304806,3111.9,3111.6,6.57115641]
[1720735677927,1.11304806,3111.8,3111.6,6.57115641]
[1720735678280,6.2127,3112.7,3111.6,6.57115641]
[1720735678533,1.73427617,3112.6,3111.6,5.47416]
[1720735678833,0.62127,3112.6,3111.6,5.47416]
[1720735678992,1.11300629,3112.5,3111.6,5.47416]
[1720735679331,1.11300629,3112.4,3111.6,5.47416]
[1720735679510,1.11300629,3112.3,3111.6,5.47416]
[1720735679686,1.11300629,3112.2,3111.6,5.47416]
[1720735680022,1.11300629,3112.1,3111.6,5.47416]
[1720735680226,1.11300629,3112.0,3111.6,8.68786]
[1720735680430,3.0,3112.7,3111.9,3.21347]
[1720735680580,3.21232,3113.1,3112.0,3.21329]
[1720735680581,1.11291403,3112.6,3112.0,3.21329]
[1720735680784,1.11291403,3112.5,3112.0,3.21329]
[1720735680995,3.0,3113.0,3112.0,3.21329]
[1720735681283,1.7341562,3112.9,3111.8,3.21352]
[1720735681487,1.11289153,3112.8,3111.8,3.21352]
[1720735681740,1.11289153,3112.7,3111.6,2.2604]
[1720735681889,0.621232,3112.9,3111.6,2.2604]
[1720735681890,1.11289153,3112.8,3111.6,2.2604]
[1720735682080,1.11289153,3112.8,3111.8,3.21348]
[1720735682286,0.17341235,3112.7,3111.8,3.21348]
[1720735682486,1.11289153,3112.6,3111.8,3.21348]
[1720735683329,1.11289153,3112.6,3111.8,6.42699]
[1720735684197,0.17341235,3112.7,3111.9,3.21344]
[1720735684419,1.11291167,3112.6,3111.9,3.21344]
[1720735684724,1.11291167,3112.5,3111.9,3.21344]
[1720735684938,3.0,3112.8,3111.9,3.856132]
[1720735684939,1.11291167,3112.4,3111.9,3.856132]
[1720735685087,1.11291167,3112.3,3112.2,3.21314]
[1720735686340,1.11291167,3112.3,3112.2,8.8837]
[1720735686630,3.0,3113.5,3112.6,3.21272]
[1720735686936,1.11270948,3113.4,3112.4,3.21293]
[1720735687151,4.32469948,3113.4,3112.2,2.4574]
[1720735687321,4.54517943,3113.3,3112.4,3.21289]
[1720735687481,1.1127522,3113.2,3112.4,3.21289]
[1720735687688,1.11275481,3113.1,3112.4,3.21289]
[1720735687888,1.11275481,3113.0,3112.4,3.21289]
[1720735688124,1.11275481,3113.3,3112.4,3.21289]
[1720735688339,1.52403029,3113.2,3112.2,2.4574]
[1720735688629,4.32498481,3113.1,3112.0,7.48]
[1720735688789,4.11275481,3113.0,3112.0,7.48]
[1720735688990,1.84525329,3112.9,3112.0,7.48]
[1720735689204,1.11275481,3112.8,3112.0,7.48]
[1720735689441,1.11275481,3112.8,3111.9,3.21338]
[1720735690434,1.11275481,3112.8,3112.4,3.21285]
[1720735690628,1.11275481,3112.9,3112.4,3.21285]
[1720735690787,1.11275481,3112.7,3112.4,3.21285]
[1720735690989,1.11277512,3112.6,3112.4,3.21285]
[1720735691194,1.11277512,3112.5,3112.4,3.21285]
[1720735691421,1.11277487,3112.5,3112.4,3.21285]
[1720735692007,1.11277487,3112.5,3111.8,4.7384]
[1720735692199,1.0405377,3113.6,3112.1,3.21317]
[1720735692200,1.11277487,3112.4,3112.1,3.21317]
[1720735692531,3.21203,3113.3,3112.0,3.21331]
[1720735692532,3.0,3113.0,3112.3,3.21302]
[1720735692694,1.11280524,3112.9,3112.2,3.21307]
[1720735692890,1.11280524,3112.8,3112.3,3.21303]
[1720735693128,1.11280524,3112.7,3112.3,3.21303]
[1720735693298,1.11271602,3112.6,3112.4,0.87071]
[1720735693497,3.0,3113.4,3112.4,0.87071]
[1720735693709,6.21192,3113.4,3112.3,3.21303]
[1720735693910,6.21192,3113.4,3112.2,5.49407]
[1720735693911,4.32476835,3113.3,3112.2,5.49407]
[1720735694119,4.11271835,3113.2,3112.2,5.49407]
[1720735694323,1.11279792,3113.1,3112.2,5.49407]
[1720735694514,1.11279792,3113.0,3112.2,5.49407]
[1720735694714,1.11279792,3112.9,3112.3,3.762437]
[1720735694912,1.11279792,3112.8,3112.3,3.762437]
[1720735695132,1.11279792,3112.7,3112.3,3.82668896]
[1720735695311,3.0,3113.4,3112.4,3.21294]
[1720735695512,1.1127184,3113.3,3112.4,3.21294]
[1720735695849,1.84518424,3113.2,3112.4,3.21294]
[1720735696049,1.1127184,3113.1,3112.4,3.21294]
[1720735696210,1.1127184,3113.0,3112.4,3.21294]
[1720735696548,1.1127184,3112.9,3112.4,3.21294]
[1720735696839,1.1127184,3112.8,3112.4,3.21294]
[1720735697000,1.1127184,3112.7,3112.2,5.49407]
[1720735697199,1.11273689,3112.6,3112.2,5.49407]
[1720735697418,3.73246584,3113.2,3112.2,5.49407]
[1720735697419,1.11273689,3112.5,3112.2,5.49407]
[1720735697597,0.39444858,3113.1,3112.2,5.49407]
[1720735697798,1.11278745,3113.0,3112.3,3.21304]
[1720735698030,1.11278745,3113.0,3112.4,0.06425352]
[1720735698213,1.11278745,3112.9,3112.3,3.27729296]
[1720735698420,1.11278745,3112.8,3112.3,4.15442926]
[1720735698640,1.11278745,3112.7,3112.3,0.8771363]
[1720735698813,1.11278745,3112.6,3112.2,5.49407]
[1720735699008,3.21204,3113.3,3112.2,5.49407]
[1720735699316,4.11275545,3113.2,3112.2,5.49407]
[1720735699655,1.11275545,3113.1,3112.2,5.49407]
[1720735699880,1.11275545,3113.0,3112.2,5.49407]
[1720735700016,0.41127554,3113.0,3112.2,5.49407]
[1720735700354,1.11275545,3112.9,3112.2,8.70715]
[1720735700559,1.11275545,3112.9,3112.3,3.27729355]
[1720735700706,1.11275545,3113.1,3112.5,3.21283]
[1720735701054,1.11265375,3113.0,3112.6,3.21264]
[1720735701224,1.11265375,3112.9,3112.7,0.555954]
[1720735701426,7.2522477,3113.6,3112.7,0.555954]
[1720735701751,7.2522477,3113.6,3112.6,3.21264]
[1720735701752,1.11265212,3113.5,3112.6,3.21264]
[1720735701956,1.11265212,3113.4,3112.6,3.21264]
[1720735702164,1.11265212,3113.3,3112.6,3.21264]
[1720735702387,1.11265212,3113.5,3112.6,3.21264]
[1720735702526,1.11265212,3113.4,3112.6,3.21264]
[1720735702727,5.56087,3113.4,3112.3,3.21301]
[1720735702930,4.78000433,3113.3,3112.3,3.21301]
[1720735703132,4.78000433,3113.3,3112.2,12.97414]
[1720735703133,1.11265212,3113.2,3112.4,3.21287]
[1720735703349,1.11265212,3113.2,3112.5,3.21278]
[1720735703521,3.66735221,3113.3,3112.5,3.21278]
[1720735703723,1.11267355,3113.2,3112.5,3.21278]
[1720735703957,1.11267052,3113.1,3112.5,3.21278]
[1720735704253,1.11267355,3113.2,3112.5,3.21278]
[1720735704559,1.11266047,3113.1,3112.6,8.83179]
[1720735704856,1.11266047,3113.0,3112.6,8.83179]
[1720735705012,1.11266047,3113.1,3112.2,12.9741]
[1720735705217,1.33519387,3113.0,3112.3,3.21297]
[1720735705414,1.11266047,3112.9,3112.3,3.21297]
[1720735705612,1.11266047,3113.1,3112.3,3.21297]
[1720735706457,1.11266047,3113.1,3112.2,7.9005]
[1720735706638,1.11266047,3113.1,3111.7,7.48]
[1720735706639,1.11266047,3113.1,3111.9,3.21337]
[1720735706850,0.2225334,3113.0,3112.0,3.21336]
[1720735707010,1.11266047,3112.9,3112.0,3.21336]
[1720735707458,1.11266047,3112.9,3112.1,3.21326]
[1720735707772,1.11280158,3112.8,3112.1,3.21326]
[1720735707970,1.11280158,3112.7,3112.1,3.21326]
[1720735708120,1.11280158,3112.6,3112.1,3.855932]
[1720735708320,1.11280158,3112.5,3112.1,3.855932]
[1720735708558,1.11280158,3112.4,3112.3,3.21296]
[1720735708862,1.11274402,3112.4,3112.3,3.21296]
[1720735709362,3.0,3113.1,3112.2,2.281]
[1720735709571,1.11269751,3113.0,3112.5,3.21283]
[1720735709728,1.11269751,3112.9,3112.5,3.21283]
[1720735709974,1.11269751,3113.1,3112.5,3.21283]
[1720735710375,1.11269751,3113.1,3112.3,5.6655]
[1720735710567,1.33523462,3113.1,3112.3,5.6655]
[1720735710784,1.11269751,3113.0,3112.3,5.6655]
[1720735711319,1.112738,3112.9,3112.2,5.49414]
[1720735711468,4.11267355,3113.2,3112.2,5.49414]
[1720735711774,1.11276391,3113.1,3112.2,5.49414]
[1720735712119,4.11267355,3113.2,3112.2,5.49414]
[1720735712120,1.11276391,3113.0,3112.2,5.49414]
[1720735712422,1.11276391,3112.9,3112.0,2.313]
[1720735712569,1.11276391,3112.8,3112.0,2.313]
[1720735712908,1.11276391,3112.7,3112.1,3.21317]
[1720735713079,1.11276391,3113.0,3112.1,3.21317]
[1720735713284,0.51664463,3112.9,3112.1,3.21317]
[1720735713499,1.11276391,3112.8,3112.1,3.21317]
[1720735713817,1.11282536,3112.7,3111.8,5.49456]
[1720735714110,1.11282536,3112.6,3111.8,5.49456]
[1720735714275,1.11282536,3112.8,3111.8,5.49456]
[1720735714476,1.27583747,3112.7,3111.8,2.281]
[1720735714680,1.11289047,3112.6,3111.8,2.281]
[1720735715078,0.162947,3112.7,3111.8,2.281]
[1720735716468,0.162947,3112.7,3111.8,5.49456]
[1720735716825,6.72914463,3112.9,3111.8,5.49456]
[1720735718221,3.51664463,3112.9,3111.9,3.21346]
[1720735718376,3.0,3112.9,3111.9,3.21346]
[1720735718580,3.0,3113.0,3111.9,3.21346]
[1720735719079,6.21234,3113.0,3111.9,3.21346]
[1720735722622,3.0,3113.0,3111.8,2.281]
[1720735722920,6.21208,3113.3,3111.9,3.21345]
[1720735723223,4.058858,3113.2,3112.1,3.2132]
[1720735723390,3.0,3113.1,3112.1,3.2132]
[1720735723597,3.0,3113.1,3112.2,3.21314]
[1720735723822,0.36521254,3113.6,3112.2,3.21314]
[1720735723823,2.3353,3114.2,3112.4,3.21294]
[1720735724134,2.3353,3114.2,3113.2,4.6897]
[1720735724627,2.3353,3114.2,3113.2,2.4087]
[1720735724829,5.54646,3114.2,3113.0,3.21229]
[1720735725119,1.11248402,3114.1,3112.8,12.143]
[1720735725419,3.21144,3113.9,3112.8,15.35552]
[1720735725625,1.11248402,3113.8,3112.8,17.21233]
[1720735725996,4.11248402,3113.8,3112.8,17.21233]
[1720735726206,1.11248402,3113.7,3112.8,17.21233]
[1720735726807,1.11248402,3113.7,3112.8,9.761]
[1720735727017,1.11248402,3113.7,3112.8,12.97353]
[1720735728031,1.11254892,3113.6,3112.8,12.97353]
[1720735728182,1.11254892,3113.5,3112.8,12.97353]
[1720735728383,1.11254892,3113.7,3112.9,1.618608]
[1720735728587,1.11254892,3113.6,3112.9,1.618608]
[1720735728807,1.11254892,3113.5,3112.9,1.618608]
[1720735729009,1.11254892,3113.4,3112.9,1.618608]
[1720735729321,1.11254892,3113.3,3113.1,3.21213]
[1720735729542,3.21095,3114.4,3113.1,3.6952038]
[1720735729543,1.11254892,3113.2,3113.1,3.6952038]
[1720735729711,3.0,3114.1,3113.1,3.6952038]
[1720735729905,1.11250947,3114.0,3113.1,3.21213]
[1720735730153,1.11250947,3113.9,3113.1,3.21213]
[1720735730364,1.11250947,3113.8,3113.1,3.21213]
[1720735730736,1.11250947,3113.7,3113.1,3.21213]
[1720735731046,3.0,3114.1,3113.1,3.21213]
[1720735731047,1.11250947,3113.6,3113.1,3.21213]
[1720735731219,3.0,3114.1,3113.1,3.21213]
[1720735731220,1.11244993,3113.5,3113.1,3.854582]
[1720735731421,1.11244993,3113.4,3113.3,3.21202]
[1720735731618,3.0,3114.1,3113.2,5.49312]
[1720735731838,1.11242752,3114.0,3113.2,5.49312]
[1720735732029,1.11242752,3113.9,3113.3,3.21196]
[1720735732309,1.11242752,3113.8,3113.3,3.21196]
[1720735732625,1.11242752,3113.7,3113.4,3.21188]
[1720735732867,1.11242752,3114.3,3113.4,3.21188]
[1720735733136,1.11242752,3114.2,3113.4,3.21188]
[1720735733346,1.11242752,3114.1,3113.4,3.21188]
[1720735733541,1.11242752,3114.0,3113.4,3.21188]
[1720735733719,3.0,3114.4,3113.4,3.9703454]
[1720735733720,1.11242752,3113.9,3113.4,3.9703454]
[1720735733923,1.11240006,3113.8,3113.3,1.1706132]
[1720735734119,1.11240006,3113.7,3113.2,5.49312]
[1720735734439,3.0,3114.2,3113.2,5.49312]
[1720735734440,1.11240006,3114.1,3113.2,5.49312]
[1720735734644,1.11246095,3114.0,3113.2,5.49312]
[1720735734841,1.11246095,3113.9,3113.2,5.49312]
[1720735735137,1.11246095,3114.1,3113.2,6.599525]
[1720735735340,1.11246095,3114.0,3113.2,6.599525]
[1720735735509,1.11246095,3113.9,3113.2,6.599525]
[1720735735710,1.11246095,3113.8,3113.2,6.599525]
[1720735736044,1.11246095,3113.7,3113.2,6.599525]
[1720735736343,1.11246095,3113.6,3113.2,6.599525]
[1720735736536,6.21111,3114.2,3113.2,6.599525]
[1720735736734,2.05464602,3114.1,3113.2,6.599525]
[1720735736923,1.11243502,3114.0,3113.2,6.599525]
[1720735737121,1.11243502,3113.9,3113.3,3.21194]
[1720735737448,1.11243502,3113.8,3113.4,3.21185]
[1720735737650,3.0,3114.4,3113.4,3.21185]
[1720735737808,1.11237589,3114.3,3113.5,0.321185]
[1720735738008,3.0,3114.4,3113.5,0.321185]
[1720735738222,1.1123772,3114.3,3113.5,0.321185]
[1720735738553,1.1123772,3114.2,3113.6,3.2117]
[1720735738738,1.1123772,3114.1,3113.8,3.2115]
[1720735738922,1.1123772,3114.0,3113.8,3.2115]
[1720735739244,5.64962,3114.9,3113.8,3.2115]
[1720735739446,1.11222838,3114.8,3113.8,3.2115]
[1720735739614,1.11222838,3114.7,3113.8,3.2115]
[1720735739944,1.11222838,3114.6,3113.9,2.3498]
[1720735740243,1.11222838,3114.5,3113.9,2.3498]
[1720735740566,1.11222838,3114.4,3114.0,3.21128]
[1720735740850,6.21022,3115.1,3114.0,3.21121]
[1720735741027,1.11217021,3114.3,3114.0,4.0341756]
[1720735741223,4.176227,3115.1,3114.0,0.8229656]
[1720735741425,2.3419,3115.3,3113.8,4.14608439]
[1720735741426,1.66219802,3115.0,3113.8,4.14608439]
[1720735741628,1.11219802,3114.9,3113.8,4.14608439]
[1720735741830,4.11219802,3114.9,3113.8,4.14608439]
[1720735742033,1.11219802,3114.8,3114.0,3.21129]
[1720735742534,1.11219802,3114.7,3114.0,3.21129]
[1720735742734,1.11219802,3115.0,3114.0,3.940602]
[1720735742936,1.11219802,3114.9,3114.0,3.940602]
[1720735743241,1.11219802,3114.8,3114.4,3.21079]
[1720735743422,1.11219802,3114.7,3114.4,5.49179]
[1720735743748,3.20976,3115.5,3114.5,0.549179]
[1720735744046,1.1120574,3115.4,3114.5,0.549179]
[1720735744248,1.1120574,3115.3,3114.5,3.759959]
[1720735744464,5.47115,3115.7,3114.5,0.6133912]
[1720735744465,1.1120574,3115.2,3114.5,0.6133912]
[1720735744615,1.1120574,3115.1,3114.8,3.21047]
[1720735744819,3.0,3115.6,3114.8,3.21047]
[1720735745151,1.6380742,3115.5,3114.6,3.21061]
[1720735745373,1.1119142,3115.4,3114.6,3.21061]
[1720735745533,1.1119142,3115.4,3114.4,5.49184]
[1720735745534,1.1119142,3115.4,3114.4,3.2108]
[1720735745917,1.1119142,3115.4,3114.5,3.21076]
[1720735746455,4.1119142,3115.4,3114.5,3.21076]
[1720735746614,0.78478342,3115.3,3114.5,3.21076]
[1720735746820,1.11199793,3115.2,3114.4,3.21088]
[1720735747148,1.11199793,3115.1,3114.4,3.21088]
[1720735747464,1.11199793,3115.2,3114.4,3.21088]
[1720735747633,1.11199793,3115.1,3114.3,7.48]
[1720735747838,2.2996,3115.1,3114.3,7.48]
[1720735748030,1.11199793,3115.0,3114.3,7.48]
[1720735748232,4.11199793,3115.0,3114.3,7.48]
[1720735748517,1.11199793,3114.9,3114.3,7.48]
[1720735748862,1.11199793,3114.9,3114.3,10.69099]
[1720735749062,5.50929,3115.6,3114.4,3.21081]
[1720735749063,3.0,3115.5,3114.4,3.21081]
[1720735749264,1.96287037,3115.4,3114.4,3.21081]
[1720735749468,1.11194137,3115.3,3114.4,3.21081]
[1720735749760,1.11194137,3115.3,3114.5,5.53019]
[1720735749940,1.11194137,3115.4,3114.6,0.06420621]
[1720735750141,3.0,3115.5,3114.6,0.06420621]
[1720735750142,3.0,3115.5,3114.7,3.21056]
[1720735750363,1.11188882,3115.3,3114.7,4.09105562]
[1720735750517,3.0,3115.7,3114.7,4.09105562]
[1720735750720,1.11187332,3115.6,3114.7,4.09105562]
[1720735751073,1.11187332,3115.5,3114.8,2.34520514]
[1720735751378,8.67009,3116.4,3115.3,3.20995]
[1720735751531,4.64161622,3116.3,3115.1,3.21009]
[1720735751718,4.32075922,3116.2,3115.1,3.21009]
[1720735751918,1.11170922,3116.1,3115.1,3.21009]
[1720735752113,1.11170922,3116.1,3115.2,3.20998]
[1720735752379,1.11170922,3116.2,3115.2,3.27417404]
[1720735752520,1.11170922,3116.1,3115.1,3.21008]
[1720735752856,1.11170922,3116.0,3114.9,5.62689]
[1720735753021,0.43209192,3115.9,3114.9,5.62688]
[1720735753217,1.11170922,3115.8,3115.0,3.21018]
[1720735753424,3.0,3116.0,3114.9,2.4166]
[1720735753614,1.11175127,3115.9,3114.9,2.4166]
[1720735753825,1.11175127,3115.8,3114.9,2.4166]
[1720735754031,1.11182359,3115.7,3114.9,2.4166]
[1720735754235,3.36202359,3115.6,3114.7,3.21053]
[1720735754535,3.36202359,3115.6,3114.7,3.21056]
[1720735754536,4.11182359,3115.5,3114.7,3.21056]
[1720735754873,1.11182359,3115.4,3114.7,3.21056]
[1720735755546,1.11182359,3115.4,3114.9,3.21035]
[1720735755747,4.32118359,3115.9,3114.9,3.852441]
[1720735755925,4.11182359,3115.8,3114.9,3.21035]
[1720735756125,1.11182359,3115.7,3114.9,3.21035]
[1720735756376,1.11182359,3115.6,3114.9,6.42063]
[1720735756656,1.11176241,3115.5,3114.9,6.42063]
[1720735756860,3.0,3115.9,3114.9,6.42063]
[1720735757019,1.11176595,3115.8,3115.0,0.870163]
[1720735757225,1.11176595,3115.7,3115.0,0.870163]
[1720735757461,1.11176595,3115.8,3115.2,2.281]